Workbook

Sheet Début
A1: Suivi des investissements | B1: Suivi des investissements
A3: Le modèle Suivi des investissements vous permet de suivre vos placements et votre répartition des actifs. Le type de données Actions d’Excel tient votre portefeuille à jour avec les cours et les détails de vos actifs. Il existe deux feuilles de calcul, Portefeuille et Répartition des actifs, décrites ci-dessous. Remarque : Le type de données Actions Excel est une fonctionnalité Office 365 disponible exclusivement par abonnement.
A5: Portefeuille | B5: Portefeuille
A6: Ajoutez vos placements, tapez des symboles de titre, des noms de société ou de fonds par-dessus les exemples, ou ajoutez-en sur des lignes supplémentaires. Sélectionnez une catégorie d’actifs, puis entrez le nombre de parts.
A7: Cliquez sur le bouton Ajouter une colonne pour ajouter des colonnes telles que Symbole du titre ou Change.
A21: Pour actualiser les données, cliquez sur l’une des actions. Sous l’onglet Données , dans le groupe Requêtes et connexions, cliquez sur Actualiser tout ou appuyez sur Ctrl+Alt+F5.
A26: Répartition des actifs | B26: Répartition des actifs
A28: Modifiez Catégories et Mon objectif pour personnaliser les objectifs de votre portefeuille.
A29: Quand une catégorie d’actifs dépasse la valeur de Seuil, les montants sont surlignés en jaune.

Sheet Portefeuille
A1: Suivi des investissements | B1: Suivi des investissements
A3: Portefeuille | B3: Portefeuille
A5: Voici un tableau avec les actions existantes dans les cellules B5:I11 et un total à la ligne 12. Entrez un nom de société dans les cellules B5:B11, puis accédez à Données > Actualiser ou appuyez sur Ctrl+Alt+F5. | B5: Société | C5: Catégorie | D5: Parts | E5: Cours | F5: Change | G5: Change (%) | H5: % du portefeuille | I5: Valeur
A6: Ajoutez vos placements, tapez des symboles de titre, des noms de société ou de fonds par-dessus les exemples, ou ajoutez-en sur des lignes supplémentaires. Sélectionnez une catégorie d’actifs, puis entrez le nombre de parts. | C6: Actions France | D6: 1,200 | E6: =_FV(TableauPortefeuille[[#This Row],[Société]],"Price") -> 105.21 € | F6: =_FV(TableauPortefeuille[[#This Row],[Société]],"Change") -> -0.24 € | G6: =_FV(TableauPortefeuille[[#This Row],[Société]],"Change (%)",TRUE) -> -0.23% | H6: =IFERROR(I6/SUBTOTAL(109,TableauPortefeuille[Valeur]),"") -> 60% | I6: =D6 * E6 -> 126,252.00 €
A7: Cliquez sur le bouton Ajouter une colonne pour ajouter des colonnes telles que Symbole du titre ou Change. | C7: Obligations | D7: 1,300 | E7: =_FV(TableauPortefeuille[[#This Row],[Société]],"Price") -> 10.46 € | F7: =_FV(TableauPortefeuille[[#This Row],[Société]],"Change") -> 0.01 € | G7: =_FV(TableauPortefeuille[[#This Row],[Société]],"Change (%)",TRUE) -> 0.12% | H7: =IFERROR(I7/SUBTOTAL(109,TableauPortefeuille[Valeur]),"") -> 6% | I7: 13,598.00 €
A8: Pour actualiser les données, cliquez sur l’une des actions. Sous l’onglet Données , dans le groupe Requêtes et connexions, cliquez sur Actualiser tout ou appuyez sur Ctrl+Alt+F5. | C8: Actions internationales | D8: 1,200 | E8: =_FV(TableauPortefeuille[[#This Row],[Société]],"Price") -> 29.29 € | F8: =_FV(TableauPortefeuille[[#This Row],[Société]],"Change") -> 0.07 € | G8: =_FV(TableauPortefeuille[[#This Row],[Société]],"Change (%)",TRUE) -> 0.24% | H8: =IFERROR(I8/SUBTOTAL(109,TableauPortefeuille[Valeur]),"") -> 17% | I8: 35,148.00 €
C9: Trésorerie | D9: 10,000 | E9: =_FV(TableauPortefeuille[[#This Row],[Société]],"Price") -> 1.00 € | F9: =_FV(TableauPortefeuille[[#This Row],[Société]],"Change") -> 0 | G9: =_FV(TableauPortefeuille[[#This Row],[Société]],"Change (%)",TRUE) -> 0.00% | H9: =IFERROR(I9/SUBTOTAL(109,TableauPortefeuille[Valeur]),"") -> 5% | I9: 10,000.00 €
C10: Immobilier | D10: 125 | E10: =_FV(TableauPortefeuille[[#This Row],[Société]],"Price") -> 116.63 € | F10: =_FV(TableauPortefeuille[[#This Row],[Société]],"Change") -> -0.25 € | G10: =_FV(TableauPortefeuille[[#This Row],[Société]],"Change (%)",TRUE) -> -0.21% | H10: =IFERROR(I10/SUBTOTAL(109,TableauPortefeuille[Valeur]),"") -> 7% | I10: 14,578.75 €
C11: Produits de base | D11: 100 | E11: =_FV(TableauPortefeuille[[#This Row],[Société]],"Price") -> 117.33 € | F11: =_FV(TableauPortefeuille[[#This Row],[Société]],"Change") -> -0.27 € | G11: =_FV(TableauPortefeuille[[#This Row],[Société]],"Change (%)",TRUE) -> -0.23% | H11: =IFERROR(I11/SUBTOTAL(109,TableauPortefeuille[Valeur]),"") -> 6% | I11: 11,733.00 €
B12: Total | I12: =IFERROR(SUBTOTAL(109,TableauPortefeuille[Valeur]), "") -> 211,309.75 €

Sheet Répartition des actifs
A1: Suivi des investissements | B1: Suivi des investissements
A3: Répartition des actifs | B3: Répartition des actifs
A6: Voici un graphique à barres qui compare visuellement le pourcentage réel d’investissements dans chaque catégorie aux objectifs définis dans le tableau ci-dessous, dans les lignes 19 à 25.
A19: Voici un tableau qui calcule le pourcentage réel d’investissements dans chaque catégorie et le compare aux objectifs. | B19: Catégorie | C19: Mon objectif | D19: Réel | E19: Écart | F19: Seuil | G19: Valeur
A20: Le tableau renseigne automatiquement les catégories de placement à partir du tableau Portefeuille figurant dans les cellules B19:G25. Entrez un objectif pour chaque catégorie de placement dans les cellules C20:C25, puis accédez à Données > Actualiser ou appuyez sur Ctrl+Alt+F5. | B20: Actions France | C20: 55% | D20: =IFERROR(G20/SUBTOTAL(109,TableauRépartitionActifs[Valeur]),"") -> 60% | E20: =D20 - C20 -> 4.7% | F20: =MIN(5%, $C20 * 25%) -> 5% | G20: =SUMIF(TableauPortefeuille[Catégorie], B20, TableauPortefeuille[Valeur]) -> 126,252.00 €
A21: Quand une catégorie d’actifs dépasse la valeur de Seuil, les montants sont surlignés en jaune. | B21: Actions internationales | C21: 20% | D21: =IFERROR(G21/SUBTOTAL(109,TableauRépartitionActifs[Valeur]),"") -> 17% | E21: -3.4% | F21: 5% | G21: =SUMIF(TableauPortefeuille[Catégorie], B21, TableauPortefeuille[Valeur]) -> 35,148.00 €
B22: Obligations | C22: 10% | D22: =IFERROR(G22/SUBTOTAL(109,TableauRépartitionActifs[Valeur]),"") -> 6% | E22: -3.6% | F22: 3% | G22: =SUMIF(TableauPortefeuille[Catégorie], B22, TableauPortefeuille[Valeur]) -> 13,598.00 €
B23: Trésorerie | C23: 5% | D23: =IFERROR(G23/SUBTOTAL(109,TableauRépartitionActifs[Valeur]),"") -> 5% | E23: -0.3% | F23: 1% | G23: =SUMIF(TableauPortefeuille[Catégorie], B23, TableauPortefeuille[Valeur]) -> 10,000.00 €
B24: Immobilier | C24: 5% | D24: =IFERROR(G24/SUBTOTAL(109,TableauRépartitionActifs[Valeur]),"") -> 7% | E24: 1.9% | F24: 1% | G24: =SUMIF(TableauPortefeuille[Catégorie], B24, TableauPortefeuille[Valeur]) -> 14,578.75 €
B25: Produits de base | C25: 5% | D25: =IFERROR(G25/SUBTOTAL(109,TableauRépartitionActifs[Valeur]),"") -> 6% | E25: 0.6% | F25: 1% | G25: =SUMIF(TableauPortefeuille[Catégorie], B25, TableauPortefeuille[Valeur]) -> 11,733.00 €
